bitfinex/quotes_BTCUSD_20241004
["timestamp","ask_amount","ask_price","bid_price","bid_amount"]
[1728050047938,0.61944811,61840.0,61839.0,0.000819]
[1728050048071,0.73307372,61840.0,61839.0,0.000819]
[1728050048308,0.71907372,61840.0,61839.0,0.000819]
[1728050048476,0.72607372,61840.0,61839.0,0.000819]
[1728050049344,0.75707372,61840.0,61839.0,0.001819]
[1728050050015,0.74207372,61840.0,61839.0,0.000819]
[1728050050375,0.75407372,61840.0,61839.0,0.000819]
[1728050050709,0.75407372,61840.0,61839.0,0.001819]
[1728050050710,0.76407372,61840.0,61839.0,0.001819]
[1728050050986,0.75407372,61840.0,61839.0,0.000819]
[1728050051548,0.74207372,61840.0,61839.0,0.000819]
[1728050051681,0.75607372,61840.0,61839.0,0.000819]
[1728050051906,0.30433261,61840.0,61839.0,0.000819]
[1728050052135,0.177707,61840.0,61839.0,0.000819]
[1728050052320,0.188707,61840.0,61839.0,0.001819]
[1728050052503,0.177707,61840.0,61839.0,0.000819]
[1728050052702,0.30303261,61840.0,61839.0,0.000819]
[1728050052944,0.31403261,61840.0,61839.0,0.001819]
[1728050053201,0.28903261,61840.0,61839.0,0.000819]
[1728050053418,0.30103261,61840.0,61839.0,0.000819]
[1728050053613,0.30103261,61840.0,61839.0,0.00952546]
[1728050053863,0.28903261,61840.0,61839.0,0.000819]
[1728050054180,0.012,61840.0,61839.0,0.163529]
[1728050054358,0.024,61840.0,61839.0,0.163529]
[1728050054558,0.024,61840.0,61839.0,0.01052546]
[1728050054771,0.012,61840.0,61839.0,0.17223546]
[1728050055000,0.173707,61840.0,61839.0,0.01052546]
[1728050055225,0.06973735,61840.0,61839.0,0.01052546]
[1728050055478,0.06573735,61840.0,61839.0,0.00952546]
[1728050055721,0.07273735,61840.0,61839.0,0.01052546]
[1728050056355,0.07873735,61840.0,61839.0,0.01152546]
[1728050056625,0.06573735,61840.0,61839.0,0.00952546]
[1728050056846,0.06573735,61840.0,61839.0,0.01052546]
[1728050056847,0.22844435,61840.0,61839.0,0.01052546]
[1728050057079,0.23344435,61840.0,61839.0,0.01052546]
[1728050057502,0.22844435,61840.0,61839.0,0.01052546]
[1728050057733,0.06673735,61840.0,61839.0,0.001819]
[1728050057923,0.015,61840.0,61839.0,0.17223546]
[1728050058149,0.013,61840.0,61839.0,0.17223546]
[1728050058449,0.013,61840.0,61839.0,0.01052546]
[1728050058450,0.45550286,61840.0,61839.0,0.01052546]
[1728050058608,0.45750286,61840.0,61839.0,0.01052546]
[1728050058856,0.60678512,61840.0,61839.0,0.001819]
[1728050059064,0.59346375,61840.0,61839.0,0.001819]
[1728050059342,0.60679611,61840.0,61839.0,0.001819]
[1728050060497,0.59346375,61840.0,61839.0,0.001819]
[1728050060717,0.60679139,61840.0,61839.0,0.001819]
[1728050060936,0.19003464,61840.0,61839.0,0.001819]
[1728050061367,0.4708305,61840.0,61839.0,0.001819]
[1728050062271,0.4638305,61840.0,61839.0,0.000819]
[1728050062502,0.4678305,61840.0,61839.0,0.000819]
[1728050062734,0.55730352,61840.0,61839.0,0.000819]
[1728050063210,0.55730352,61840.0,61839.0,0.001819]
[1728050063211,0.64290352,61840.0,61839.0,0.001819]
[1728050063448,0.64290352,61840.0,61836.0,0.000819]
[1728050063449,0.163715,61837.0,61836.0,0.000819]
[1728050063682,0.163715,61837.0,61834.0,0.000819]
[1728050063683,0.16372,61835.0,61834.0,0.000819]
[1728050063915,0.4808435,61835.0,61834.0,0.000819]
[1728050064160,0.4808435,61835.0,61831.0,0.00082]
[1728050064161,0.286728,61832.0,61831.0,0.00082]
[1728050064450,0.30005564,61832.0,61831.0,0.00082]
[1728050065340,0.31105564,61832.0,61831.0,0.00082]
[1728050065552,0.27416752,61832.0,61831.0,0.00082]
[1728050065795,0.28416752,61832.0,61831.0,0.00182]
[1728050066003,0.26116752,61832.0,61831.0,0.00182]
[1728050066236,0.25116752,61832.0,61831.0,0.00082]
[1728050066466,0.26116752,61832.0,61831.0,0.00182]
[1728050066700,0.14016752,61832.0,61831.0,0.00082]
[1728050066947,0.38214398,61832.0,61831.0,0.00082]
[1728050067176,0.15416752,61832.0,61831.0,0.00082]
[1728050067395,0.16416752,61832.0,61831.0,0.00182]
[1728050067610,0.15016752,61832.0,61831.0,0.00182]
[1728050067867,0.16416752,61832.0,61831.0,0.00182]
[1728050068274,0.15016752,61832.0,61831.0,0.00182]
[1728050068959,0.15416752,61832.0,61831.0,0.00082]
[1728050069124,0.31455646,61832.0,61831.0,0.00182]
[1728050069745,0.16416752,61832.0,61831.0,0.00182]
[1728050070417,0.15016752,61832.0,61831.0,0.00182]
[1728050070652,0.1842782,61832.0,61831.0,0.00182]
[1728050070891,0.2842782,61832.0,61831.0,0.00182]
[1728050071111,0.28427556,61832.0,61831.0,0.00182]
[1728050071330,0.44746227,61832.0,61831.0,0.00182]
[1728050071789,0.43646227,61832.0,61831.0,0.00182]
[1728050072060,0.44946227,61832.0,61831.0,0.00182]
[1728050072509,0.43946227,61832.0,61831.0,0.00082]
[1728050072735,0.45546227,61832.0,61831.0,0.00182]
[1728050072976,0.44146227,61832.0,61831.0,0.00082]
[1728050073190,0.42846227,61832.0,61831.0,0.00082]
[1728050073426,0.44246227,61832.0,61831.0,0.00182]
[1728050073652,0.45446227,61832.0,61831.0,0.00182]
[1728050074164,0.44046227,61832.0,61831.0,0.00182]
[1728050074353,0.45646227,61832.0,61831.0,0.00182]
[1728050074611,0.56553986,61826.0,61825.0,0.000819]
[1728050074845,0.56553986,61826.0,61812.0,0.000821]
[1728050074846,0.44257386,61813.0,61812.0,0.000821]
[1728050075072,0.47129162,61813.0,61812.0,0.000821]
[1728050075301,0.47129162,61813.0,61812.0,0.00982599]
[1728050075546,0.61545894,61813.0,61812.0,0.000821]
[1728050075798,0.61545894,61813.0,61806.0,0.000819]
[1728050075799,0.9018574,61813.0,61806.0,0.000819]
[1728050076021,0.58126354,61807.0,61806.0,0.000819]
[1728050076322,0.58126354,61807.0,61801.0,0.02113531]
[1728050076323,0.263799,61805.0,61801.0,0.02113531]
[1728050076489,0.31453855,61805.0,61801.0,0.02113531]
[1728050076957,0.30112811,61805.0,61801.0,0.02113531]
[1728050077423,0.32851724,61805.0,61801.0,0.02113531]
[1728050077859,0.33051724,61805.0,61801.0,0.02113531]
[1728050078081,0.44747897,61805.0,61801.0,0.02113531]
[1728050078367,0.46147897,61805.0,61801.0,0.02113531]
[1728050078827,0.45947897,61805.0,61801.0,0.02113531]
[1728050079049,0.47547897,61805.0,61801.0,0.02113531]
[1728050079294,0.47547897,61805.0,61799.0,0.00082]
[1728050079295,0.54165643,61805.0,61799.0,0.00082]
[1728050079558,0.54165643,61805.0,61781.0,0.0002]
[1728050079559,0.261846,61787.0,61781.0,0.0002]
[1728050079818,0.284856,61783.0,61781.0,0.0002]
[1728050080012,0.8656576,61783.0,61781.0,0.0002]
[1728050080246,0.97114673,61783.0,61782.0,0.010156]
[1728050080539,1.01506629,61783.0,61782.0,0.000819]
[1728050080709,0.28489,61770.0,61769.0,0.000819]
[1728050080961,0.58659897,61770.0,61769.0,0.000819]
[1728050081192,0.5999881,61770.0,61769.0,0.000819]
[1728050081647,0.6772881,61770.0,61769.0,0.000819]
[1728050081942,0.72246136,61770.0,61769.0,0.000819]
[1728050082186,0.87945568,61770.0,61769.0,0.000819]
[1728050083137,0.89345568,61770.0,61769.0,0.000819]
[1728050083620,0.90745568,61770.0,61769.0,0.000819]
[1728050083790,0.87945568,61770.0,61769.0,0.000819]
[1728050084014,0.89345568,61770.0,61769.0,0.000819]
[1728050084257,0.7814881,61770.0,61769.0,0.000819]
[1728050084473,0.6921881,61770.0,61769.0,0.000819]
[1728050084727,0.6691881,61770.0,61769.0,0.000819]
[1728050085010,0.4909881,61770.0,61769.0,0.000819]
[1728050085207,0.49159897,61770.0,61769.0,0.000819]
[1728050085434,0.58338964,61770.0,61769.0,0.000819]
[1728050085670,0.03491311,61770.0,61769.0,0.000819]
[1728050085918,0.04891311,61770.0,61769.0,0.000819]
[1728050086103,0.04891311,61770.0,61769.0,0.17219298]
[1728050086104,0.02091311,61770.0,61769.0,0.17219298]
[1728050086328,0.03491311,61770.0,61769.0,0.17219298]
[1728050086567,0.04291311,61770.0,61769.0,0.17219298]
[1728050086853,0.04291311,61770.0,61769.0,0.01029998]
[1728050086854,0.18280311,61770.0,61769.0,0.01029998]
[1728050087042,0.03491311,61770.0,61769.0,0.000819]
[1728050087486,0.03491311,61770.0,61769.0,0.01029998]
[1728050087705,0.04891311,61770.0,61769.0,0.01029998]
[1728050087932,0.04891311,61770.0,61769.0,0.162712]
[1728050088157,0.03491311,61770.0,61769.0,0.17219298]
[1728050088396,0.03491311,61770.0,61769.0,0.01029998]
[1728050088651,0.20480311,61770.0,61769.0,0.01029998]
[1728050088907,0.04291311,61770.0,61769.0,0.000819]
[1728050089105,0.02091311,61770.0,61769.0,0.17219298]
[1728050089332,0.02691311,61770.0,61769.0,0.162712]
[1728050089578,0.02691311,61770.0,61769.0,0.17219298]
[1728050089827,0.02091311,61770.0,61769.0,0.17219298]
[1728050090089,0.02691311,61770.0,61769.0,0.17219298]
[1728050090328,0.03491311,61770.0,61769.0,0.17219298]
[1728050090568,0.006,61770.0,61769.0,0.24819298]
[1728050091038,0.009,61770.0,61769.0,0.24819298]
[1728050091479,0.003,61770.0,61769.0,0.24819298]
[1728050091706,0.005,61770.0,61769.0,0.24819298]
[1728050091953,0.003,61770.0,61769.0,0.24819298]
[1728050092193,0.24197646,61781.0,61769.0,0.08629998]
[1728050092474,0.001,61770.0,61769.0,0.17219298]
[1728050093242,0.02019241,61780.0,61779.0,0.161867]
[1728050093472,0.02019241,61780.0,61776.0,0.323748]
[1728050093711,0.02019241,61780.0,61779.0,0.17123722]
[1728050093982,0.02019241,61780.0,61769.0,0.000819]
[1728050093983,0.02019241,61780.0,61774.0,0.323756]
[1728050094228,0.18205641,61780.0,61779.0,0.00937022]
[1728050094463,0.18205641,61780.0,61769.0,0.000819]
[1728050094464,0.02019241,61780.0,61769.0,0.000819]
[1728050094720,0.323757,61775.0,61769.0,0.000819]
[1728050094973,0.34434751,61774.0,61769.0,0.162711]
[1728050095241,0.34434751,61774.0,61770.0,0.0094699]
[1728050095242,0.323767,61773.0,61770.0,0.0094699]
[1728050095481,0.161888,61771.0,61770.0,0.0094699]
[1728050095703,0.161888,61771.0,61769.0,0.000819]
[1728050095704,0.18267006,61771.0,61769.0,0.000819]
[1728050095948,0.02084758,61770.0,61769.0,0.000819]
[1728050096970,0.02084758,61770.0,61769.0,0.162712]
[1728050097245,0.0485391,61770.0,61769.0,0.000819]
[1728050097488,0.22372282,61770.0,61769.0,0.000819]
[1728050098179,0.22572282,61770.0,61769.0,0.000819]
[1728050098449,0.22372282,61770.0,61769.0,0.000819]
[1728050098915,0.0441413,61770.0,61769.0,0.162712]
[1728050099153,0.03084758,61770.0,61769.0,0.162712]
[1728050099424,0.04117064,61770.0,61769.0,0.00342984]
[1728050099640,0.014,61770.0,61769.0,0.16532284]
[1728050100654,0.007,61770.0,61769.0,0.16532284]
[1728050100889,0.001642,61780.0,61777.0,0.161871]
[1728050101194,0.60453686,61778.0,61769.0,0.00342984]
[1728050101470,0.001,61770.0,61769.0,0.16632284]
[1728050101683,0.02091311,61770.0,61769.0,0.000819]
[1728050101911,0.02091311,61770.0,61769.0,0.01391082]
[1728050102058,0.02091311,61770.0,61769.0,0.000819]
[1728050102059,0.21827152,61770.0,61769.0,0.000819]
[1728050102539,0.18280311,61770.0,61769.0,0.000819]
[1728050103085,0.18580311,61770.0,61769.0,0.01291082]
[1728050103326,0.18280311,61770.0,61769.0,0.000819]
[1728050103651,0.32629301,61770.0,61769.0,0.000819]
[1728050103793,0.02791311,61770.0,61769.0,0.000819]
[1728050104093,0.02791311,61770.0,61769.0,0.162712]
[1728050104336,0.02991311,61770.0,61769.0,0.000819]
[1728050104629,0.18980311,61770.0,61769.0,0.01291082]
[1728050104819,0.02891311,61770.0,61769.0,0.162712]
[1728050105072,0.161864,61781.0,61772.0,0.161885]
[1728050105374,0.24197646,61782.0,61773.0,0.323765]
[1728050105375,0.02012691,61778.0,61773.0,0.323765]
[1728050105565,0.02012691,61778.0,61777.0,0.161872]
[1728050106030,0.02012691,61778.0,61774.0,0.00942559]
[1728050106277,0.02012691,61778.0,61777.0,0.00939237]
[1728050106514,0.02012691,61778.0,61775.0,0.161877]
[1728050106774,0.18199591,61778.0,61777.0,0.00939237]
[1728050106997,0.18199591,61778.0,61769.0,0.000819]
[1728050106998,0.161872,61777.0,61776.0,0.00940344]
[1728050107236,0.02012691,61778.0,61769.0,0.000819]
[1728050107481,0.014,61770.0,61769.0,0.000819]
[1728050107774,0.014,61770.0,61769.0,0.162712]
[1728050108208,0.161876,61776.0,61772.0,0.161884]
[1728050108215,0.03412691,61778.0,61769.0,0.000819]
[1728050108451,0.161875,61776.0,61773.0,0.161882]
[1728050108706,0.161876,61776.0,61771.0,0.323775]
[1728050108939,0.35287091,61778.0,61769.0,0.000819]
[1728050109178,0.17531514,61775.0,61771.0,0.161886]
[1728050109413,0.01343714,61774.0,61770.0,0.323778]
[1728050109693,0.16189,61770.0,61769.0,0.000819]
[1728050109959,0.17532714,61770.0,61769.0,0.000819]
[1728050111445,0.33918345,61770.0,61769.0,0.000819]
[1728050112199,0.19624025,61770.0,61769.0,0.000819]
[1728050112422,0.03435025,61770.0,61769.0,0.162712]
[1728050112657,0.04235025,61770.0,61769.0,0.162712]
[1728050112905,0.21424025,61770.0,61769.0,0.000819]
[1728050113178,0.23285097,61770.0,61769.0,0.000819]
[1728050113706,0.23285097,61770.0,61769.0,0.001819]
[1728050113973,0.21941383,61770.0,61769.0,0.001819]
[1728050114201,0.40182482,61770.0,61769.0,0.001819]
[1728050114478,0.43082482,61770.0,61769.0,0.001819]
[1728050114734,0.44434664,61770.0,61769.0,0.001819]
[1728050114982,0.44434664,61770.0,61769.0,0.000819]
[1728050115256,0.42734664,61770.0,61769.0,0.000819]
[1728050115504,0.40783565,61770.0,61769.0,0.000819]
[1728050115710,0.41183565,61770.0,61769.0,0.000819]
[1728050115981,0.04343493,61770.0,61769.0,0.000819]
[1728050116281,0.21532493,61770.0,61769.0,0.01029998]
[1728050116484,0.03443493,61770.0,61769.0,0.000819]
[1728050116743,0.23353072,61770.0,61769.0,0.000819]
[1728050117047,0.24353072,61770.0,61769.0,0.01029998]
[1728050117268,0.33443072,61770.0,61769.0,0.000819]
[1728050117481,0.53863072,61770.0,61769.0,0.000819]
[1728050118709,0.76160718,61770.0,61769.0,0.000819]
[1728050118930,0.76160718,61770.0,61761.0,0.0002]
[1728050118931,0.56570686,61762.0,61761.0,0.0002]
[1728050119164,0.64418754,61762.0,61761.0,0.0002]
[1728050119929,0.600666,61762.0,61761.0,0.0002]
[1728050120169,0.03495914,61762.0,61761.0,0.0002]
[1728050120642,0.20334832,61762.0,61761.0,0.0097696]
[1728050120959,0.05492471,61762.0,61761.0,0.1716836]
[1728050121202,0.05492471,61762.0,61761.0,0.0097696]
[1728050121518,0.03348739,61762.0,61761.0,0.1716836]
[1728050122192,0.03348739,61762.0,61761.0,0.1725046]
[1728050122427,0.01348739,61762.0,61761.0,0.1725046]
[1728050122733,0.633515,61777.0,61773.0,0.161882]
[1728050122918,0.161884,61773.0,61769.0,0.161892]
[1728050123170,0.03422559,61772.0,61770.0,0.16189]
[1728050123374,0.01350905,61771.0,61770.0,0.323781]
[1728050123648,0.03429111,61771.0,61768.0,0.323792]
[1728050123838,0.02078206,61771.0,61768.0,0.323792]
[1728050124061,0.02078206,61771.0,61770.0,0.16189]
[1728050124541,0.161899,61767.0,61761.0,0.001021]
[1728050124816,0.03513837,61766.0,61761.0,0.001021]
[1728050125045,0.161911,61762.0,61761.0,0.001021]
[1728050125281,0.30992308,61762.0,61761.0,0.001021]
[1728050126652,0.30992308,61762.0,61761.0,0.002021]
[1728050126917,0.33292308,61762.0,61761.0,0.001021]
[1728050127148,0.22037706,61762.0,61761.0,0.001021]
[1728050127844,0.19737706,61762.0,61761.0,0.001021]
[1728050128090,0.19737706,61762.0,61761.0,0.162935]
[1728050128091,0.04446606,61762.0,61761.0,0.162935]
[1728050128330,0.05746606,61762.0,61761.0,0.162935]
[1728050128606,0.05746606,61762.0,61761.0,0.1725046]
[1728050128607,0.04446606,61762.0,61761.0,0.1725046]
[1728050128831,0.02250446,61762.0,61761.0,0.0105906]
[1728050129035,0.19841546,61762.0,61761.0,0.0105906]
[1728050129255,0.27343485,61762.0,61761.0,0.001021]
[1728050129487,0.18441546,61762.0,61761.0,0.001021]
[1728050129706,0.17541546,61762.0,61761.0,0.001021]
[1728050129956,0.17941546,61762.0,61761.0,0.001021]
[1728050130408,0.20241546,61762.0,61761.0,0.001021]
[1728050130678,0.33969634,61762.0,61761.0,0.001021]
[1728050131078,0.33669634,61762.0,61761.0,0.001021]
[1728050131358,0.33569634,61762.0,61761.0,0.001021]
[1728050131582,0.35369634,61762.0,61761.0,0.001021]
[1728050131809,0.20741546,61762.0,61761.0,0.001021]
[1728050132084,0.18941546,61762.0,61761.0,0.001021]
[1728050132339,0.20341546,61762.0,61761.0,0.001021]
[1728050132671,0.04150446,61762.0,61761.0,0.0105906]
[1728050132926,0.02750446,61762.0,61761.0,0.1725046]
[1728050133192,0.02050446,61762.0,61761.0,0.1725046]
[1728050133718,0.007,61762.0,61761.0,0.1725046]
[1728050133946,0.007,61762.0,61761.0,0.0105906]
[1728050133947,0.02046234,61762.0,61761.0,0.0105906]
[1728050134432,0.02046234,61762.0,61761.0,0.1725046]
[1728050134433,0.02910434,61762.0,61761.0,0.1725046]
[1728050134653,0.02210434,61762.0,61761.0,0.1725046]
[1728050134886,0.02110502,61762.0,61761.0,0.1725046]
[1728050135372,0.01510502,61762.0,61761.0,0.1725046]
[1728050135605,0.01710502,61762.0,61761.0,0.1725046]
[1728050136071,0.02010502,61762.0,61761.0,0.1725046]
[1728050136373,0.02010502,61762.0,61761.0,0.0105906]
[1728050136374,0.18201602,61762.0,61761.0,0.0105906]
[1728050136894,0.30330996,61762.0,61761.0,0.001021]
[1728050137355,0.17701602,61762.0,61761.0,0.001021]
[1728050137593,0.17901602,61762.0,61761.0,0.001021]
[1728050138075,0.17701602,61762.0,61761.0,0.001021]
[1728050138357,0.20501602,61762.0,61761.0,0.001021]
[1728050138584,0.25128108,61762.0,61761.0,0.001021]
[1728050138819,0.23727793,61762.0,61761.0,0.001021]
[1728050139042,0.18901602,61762.0,61761.0,0.001021]
[1728050139286,0.18601602,61762.0,61761.0,0.001021]
[1728050140496,0.20001602,61762.0,61761.0,0.001021]
[1728050140696,0.23427793,61762.0,61761.0,0.001021]
[1728050140940,0.38846464,61762.0,61761.0,0.001021]
[1728050141187,0.40446464,61762.0,61761.0,0.001021]
[1728050141511,0.19301602,61762.0,61761.0,0.001021]
[1728050141652,0.19301602,61762.0,61761.0,0.162935]
[1728050141653,0.02310502,61762.0,61761.0,0.162935]
[1728050141880,0.02610502,61762.0,61761.0,0.162935]
[1728050142132,0.02610502,61762.0,61761.0,0.1725046]
[1728050142608,0.03410502,61762.0,61761.0,0.1725046]
[1728050143307,0.19601602,61762.0,61761.0,0.0105906]
[1728050143634,0.18501602,61762.0,61761.0,0.0105906]
[1728050143753,0.03110502,61762.0,61761.0,0.001021]
[1728050143977,0.02310502,61762.0,61761.0,0.001021]
[1728050144255,0.009642,61762.0,61761.0,0.1725046]
[1728050144488,0.001642,61762.0,61761.0,0.1735046]
[1728050144742,0.01509909,61762.0,61761.0,0.1725046]
[1728050144979,0.006642,61762.0,61761.0,0.1725046]
[1728050145223,0.001642,61762.0,61761.0,0.1725046]
[1728050145756,0.002642,61762.0,61761.0,0.1725046]
[1728050146209,0.001642,61762.0,61761.0,0.1725046]
[1728050146757,0.009642,61762.0,61761.0,0.1725046]
[1728050146977,0.001642,61762.0,61761.0,0.1725046]
[1728050147193,0.002642,61762.0,61761.0,0.17615739]
[1728050147417,0.001642,61762.0,61761.0,0.17515739]
[1728050147884,0.002642,61762.0,61761.0,0.17615739]
[1728050148134,0.002642,61762.0,61761.0,0.17515739]
[1728050148398,0.002642,61762.0,61761.0,0.17615739]
[1728050148637,0.002642,61762.0,61761.0,0.5601341]
[1728050148638,0.003642,61762.0,61761.0,0.5601341]
[1728050148957,0.003642,61762.0,61761.0,0.5621341]
[1728050149161,0.003642,61762.0,61761.0,0.63487304]
[1728050149356,0.002642,61762.0,61761.0,0.5621341]
[1728050149602,0.002,61762.0,61761.0,0.5621341]
[1728050149813,0.24197646,61773.0,61772.0,0.161885]
[1728050150058,0.24197646,61773.0,61772.0,0.2104526]
[1728050150272,0.24197646,61773.0,61772.0,0.17392787]
[1728050150520,0.001642,61777.0,61776.0,0.161875]
[1728050150952,0.01503554,61777.0,61776.0,0.16444916]
[1728050151874,0.01503554,61777.0,61776.0,0.16544916]
[1728050152097,0.01603554,61777.0,61776.0,0.16544916]
[1728050154140,0.01603554,61777.0,61776.0,0.00357416]
[1728050154405,0.17790754,61777.0,61776.0,0.00357416]
[1728050155101,0.17790754,61777.0,61776.0,0.001]
[1728050155337,0.30496896,61777.0,61776.0,0.001]
[1728050155587,0.17790754,61777.0,61776.0,0.001]
[1728050155816,0.20090754,61777.0,61776.0,0.001]
[1728050156036,0.38857073,61777.0,61776.0,0.001]
[1728050156743,0.161908,61764.0,61761.0,0.001021]
[1728050156973,0.01339354,61763.0,61761.0,0.001021]
[1728050157250,0.161911,61762.0,61761.0,0.001021]
[1728050157447,0.01339354,61762.0,61761.0,0.162935]
[1728050157700,0.04823048,61774.0,61762.0,0.323818]
[1728050157930,0.24197646,61775.0,61761.0,0.001021]
[1728050157931,0.24197646,61767.0,61766.0,0.3238]
[1728050158176,0.01340051,61773.0,61770.0,0.16189]
[1728050158421,0.01340108,61772.0,61770.0,0.16189]
[1728050158645,0.16188,61774.0,61771.0,0.16448836]
[1728050158889,0.161885,61772.0,61771.0,0.00260036]
[1728050159128,0.161885,61772.0,61762.0,0.32382]
[1728050159129,0.01340089,61772.0,61764.0,0.161905]
[1728050159391,0.323782,61770.0,61761.0,0.001021]
[1728050159587,0.323803,61766.0,61761.0,0.001021]
[1728050159845,0.161907,61764.0,61761.0,0.162935]
[1728050160059,0.01340089,61763.0,61761.0,0.162935]
[1728050160292,0.01340089,61763.0,61761.0,0.162934]
[1728050160555,0.17531189,61762.0,61761.0,0.001021]
[1728050160835,0.161911,61762.0,61761.0,0.001021]
[1728050161033,0.01342459,61762.0,61761.0,0.001021]
[1728050161503,0.01342459,61762.0,61761.0,0.162935]
[1728050162195,0.01342459,61762.0,61761.0,0.001021]
[1728050162196,0.01442459,61762.0,61761.0,0.001021]
[1728050162711,0.17533559,61762.0,61761.0,0.001021]
[1728050162954,0.17533559,61762.0,61761.0,0.004021]
[1728050162955,0.3485475,61762.0,61761.0,0.004021]
[1728050163153,0.3485475,61762.0,61761.0,0.0145906]
[1728050163409,0.3485475,61762.0,61761.0,0.005021]
[1728050163410,0.3715475,61762.0,61761.0,0.005021]
[1728050163630,0.37152351,61762.0,61761.0,0.005021]
[1728050163851,0.37152351,61762.0,61761.0,0.004021]
[1728050164092,0.37152351,61762.0,61761.0,0.001021]
[1728050164322,0.38352351,61762.0,61761.0,0.001021]
[1728050164561,0.42075189,61762.0,61761.0,0.001021]
[1728050164782,0.38452351,61762.0,61761.0,0.001021]
[1728050165038,0.38352351,61762.0,61761.0,0.001021]
[1728050165284,0.41835129,61762.0,61761.0,0.001021]
[1728050165510,0.38312291,61762.0,61761.0,0.001021]
[1728050165738,0.39652242,61762.0,61761.0,0.001021]
[1728050165974,0.29921051,61762.0,61761.0,0.001021]
[1728050166217,0.29921051,61762.0,61761.0,0.162935]
[1728050166218,0.03839951,61762.0,61761.0,0.162935]
[1728050166689,0.025,61762.0,61761.0,0.162935]
[1728050166919,0.03840217,61762.0,61761.0,0.1725046]
[1728050167402,0.02540217,61762.0,61761.0,0.1725046]
[1728050167631,0.01340217,61762.0,61761.0,0.1725046]
[1728050167859,0.01440217,61762.0,61761.0,0.1735046]
[1728050168334,0.01340217,61762.0,61761.0,0.1735046]
[1728050168585,0.24197646,61775.0,61766.0,0.161901]
[1728050168818,0.24197646,61775.0,61774.0,0.16188]
[1728050169319,0.01339728,61775.0,61774.0,0.16188]
[1728050169556,0.01339728,61775.0,61774.0,0.17130559]
[1728050170044,0.01339728,61775.0,61774.0,0.00942559]
[1728050170045,0.17527428,61775.0,61774.0,0.00942559]
[1728050170263,0.26704321,61775.0,61774.0,0.00942559]
[1728050170504,0.26704321,61775.0,61761.0,0.324848]
[1728050170505,0.001642,61769.0,61761.0,0.324848]
[1728050170714,0.161896,61768.0,61765.0,0.161902]
[1728050170953,0.161896,61768.0,61766.0,0.001]
[1728050171190,0.01339728,61767.0,61766.0,0.001]
[1728050171415,0.17529528,61767.0,61766.0,0.001]
[1728050171654,0.17529528,61767.0,61761.0,0.001021]
[1728050171655,0.01339728,61767.0,61762.0,0.323819]
[1728050171895,0.01339728,61768.0,61762.0,0.323819]
[1728050172105,0.01339728,61767.0,61765.0,0.161902]
[1728050172329,0.01339728,61768.0,61765.0,0.161902]
[1728050172531,0.01339728,61767.0,61765.0,0.161902]
[1728050172772,0.01339728,61766.0,61765.0,0.161903]
[1728050173009,0.005642,61769.0,61768.0,0.161896]
[1728050173270,0.005642,61769.0,61768.0,0.241296]
[1728050173514,0.001642,61769.0,61768.0,0.241296]
[1728050174442,0.004642,61769.0,61768.0,0.241296]
[1728050174664,0.006642,61769.0,61768.0,0.241296]
[1728050174952,0.003642,61769.0,61768.0,0.241296]
[1728050175048,0.004642,61769.0,61768.0,0.248296]
[1728050175983,0.002642,61769.0,61768.0,0.248296]
[1728050176212,0.003642,61769.0,61768.0,0.255296]
[1728050177060,0.003642,61769.0,61768.0,0.51848271]
[1728050177246,0.003642,61769.0,61768.0,0.60858271]
[1728050177945,0.001642,61777.0,61776.0,0.44327552]
[1728050178149,0.001642,61777.0,61776.0,0.161875]
[1728050179035,0.001642,61777.0,61768.0,0.0874]
[1728050179241,0.001642,61777.0,61776.0,0.161875]
[1728050179900,0.003642,61777.0,61776.0,0.183875]
[1728050180104,0.01703667,61777.0,61776.0,0.183875]
[1728050180281,0.01503667,61777.0,61776.0,0.17127844]
[1728050180556,0.002642,61777.0,61776.0,0.17127844]
[1728050180697,0.01703667,61777.0,61776.0,0.17127844]
[1728050181149,0.17690867,61777.0,61776.0,0.00940344]
[1728050181351,0.17990867,61777.0,61776.0,0.00940344]
[1728050181636,0.17990867,61777.0,61769.0,0.323786]
[1728050181637,0.161881,61774.0,61769.0,0.323786]
[1728050181725,0.01339467,61773.0,61771.0,0.161886]
[1728050181932,0.161877,61776.0,61772.0,0.161885]
[1728050182140,0.17529373,61775.0,61772.0,0.17133175]
[1728050182336,0.01341673,61774.0,61773.0,0.161882]
[1728050182545,0.01341673,61774.0,61772.0,0.00944775]
[1728050182910,0.166515,61777.0,61773.0,0.17131867]
[1728050183124,0.01341403,61776.0,61773.0,0.17131867]
[1728050183351,0.166515,61777.0,61773.0,0.17131867]
[1728050183352,0.163522,61774.0,61773.0,0.00943667]
[1728050183549,0.17693603,61774.0,61773.0,0.00943667]
[1728050183752,0.163522,61774.0,61773.0,0.00943667]
[1728050183935,0.163522,61774.0,61763.0,0.161908]
[1728050183936,0.323785,61770.0,61763.0,0.161908]
[1728050184162,0.161894,61769.0,61765.0,0.161903]
[1728050184381,0.01341393,61768.0,61767.0,0.161898]
[1728050184592,0.001642,61774.0,61768.0,0.161896]
[1728050184593,0.01341393,61769.0,61768.0,0.161896]
[1728050184817,0.01342429,61769.0,61767.0,0.323796]
[1728050185023,0.01342429,61769.0,61762.0,0.323822]
[1728050185024,0.323768,61773.0,61768.0,0.161895]
[1728050185211,0.001642,61774.0,61769.0,0.161892]
[1728050185212,0.17531,61772.0,61769.0,0.161892]
[1728050185428,0.013425,61771.0,61769.0,0.161892]
[1728050185638,0.161884,61773.0,61769.0,0.161892]
[1728050185639,0.013425,61770.0,61769.0,0.161892]
[1728050186078,0.175316,61770.0,61767.0,0.161897]
[1728050186301,0.013425,61770.0,61766.0,0.323801]
[1728050186531,0.161896,61769.0,61765.0,0.005]
[1728050186749,0.161896,61768.0,61765.0,0.161903]
[1728050186945,0.01342044,61768.0,61766.0,0.1619]
[1728050187168,0.01342044,61767.0,61766.0,0.1619]
[1728050187634,0.01342044,61767.0,61766.0,0.161901]
[1728050188906,0.01342044,61767.0,61763.0,0.323816]
[1728050189137,0.01342044,61767.0,61761.0,0.001021]
[1728050189138,0.161911,61762.0,61761.0,0.001021]
[1728050189553,0.01342044,61762.0,61761.0,0.001021]
[1728050189763,0.01342044,61762.0,61761.0,0.162935]
[1728050190019,0.01342058,61762.0,61761.0,0.48676]